[Event "*** Titled Tuesday 3|2 Blitz"]
[Site "Chess.com"]
[Date "2016.09.06"]
[Round "7"]
[White "Abdodi"]
[Black "dretch"]
[Result "0-1"]
[WhiteElo "1981"]
[BlackElo "2619"]
[TimeControl "180+2"]
[EndTime "12:30:12 PDT"]
[Termination "dretch won on time"]

1. d4 {[%clk 0:03:01.9]} 1... d5 {[%clk 0:03:00.9]} 2. Nf3 {[%clk 0:03:00.1]}
2... Nf6 {[%clk 0:03:01.9]} 3. c4 {[%clk 0:03:00.5]} 3... c6 {[%clk 0:03:03.1]}
4. Nc3 {[%clk 0:02:59.7]} 4... dxc4 {[%clk 0:03:02.8]} 5. a4 {[%clk 0:02:58.8]}
5... e6 {[%clk 0:03:03.7]} 6. e3 {[%clk 0:02:58.8]} 6... c5 {[%clk 0:03:04]} 7.
Bxc4 {[%clk 0:02:58.6]} 7... cxd4 {[%clk 0:03:05.2]} 8. Qxd4 {[%clk 0:02:57.6]}
8... Bd7 {[%clk 0:03:05]} 9. Nb5 {[%clk 0:02:50.4]} 9... Nc6 {[%clk 0:03:01.2]}
10. Nd6+ {[%clk 0:02:47.1]} 10... Bxd6 {[%clk 0:03:01.9]} 11. Qxd6 {[%clk
0:02:49]} 11... Ne4 {[%clk 0:02:59.2]} 12. Qa3 {[%clk 0:02:35.2]} 12... Qa5+
{[%clk 0:02:57.6]} 13. Bd2 {[%clk 0:02:33.3]} 13... Nxd2 {[%clk 0:02:57.1]} 14.
Nxd2 {[%clk 0:02:33.4]} 14... Rc8 {[%clk 0:02:28.9]} 15. Bb5 {[%clk 0:01:59.6]}
15... a6 {[%clk 0:02:15.3]} 16. b4 {[%clk 0:01:59.8]} 16... Qc7 {[%clk
0:01:55.3]} 17. Bxc6 {[%clk 0:01:54]} 17... Qxc6 {[%clk 0:01:42.3]} 18. O-O
{[%clk 0:01:49.8]} 18... O-O {[%clk 0:01:42]} 19. Nf3 {[%clk 0:01:46.2]} 19...
Qe4 {[%clk 0:01:22.5]} 20. Rfd1 {[%clk 0:01:35.2]} 20... Bc6 {[%clk 0:01:19.2]}
21. Rd4 {[%clk 0:01:35.3]} 21... Qg6 {[%clk 0:01:18.3]} 22. Qd3 {[%clk
0:01:22.8]} 22... Qxd3 {[%clk 0:01:01.3]} 23. Rxd3 {[%clk 0:01:22.2]} 23... Bxa4
{[%clk 0:01:03]} 24. h3 {[%clk 0:00:55.9]} 24... Bb5 {[%clk 0:00:56.4]} 25. Rd6
{[%clk 0:00:47.1]} 25... Rfd8 {[%clk 0:00:51.8]} 26. Rxd8+ {[%clk 0:00:46.5]}
26... Rxd8 {[%clk 0:00:53.7]} 27. Nd4 {[%clk 0:00:46.7]} 27... Bd7 {[%clk
0:00:42.2]} 28. Rc1 {[%clk 0:00:22.3]} 28... Rc8 {[%clk 0:00:41.3]} 29. Rd1
{[%clk 0:00:23.4]} 29... Kf8 {[%clk 0:00:40.9]} 30. Nb3 {[%clk 0:00:22.7]} 30...
Ba4 {[%clk 0:00:40.6]} 31. Rd3 {[%clk 0:00:23]} 31... b6 {[%clk 0:00:38.6]} 32.
Nd2 {[%clk 0:00:18.2]} 32... Ke7 {[%clk 0:00:37.9]} 33. Nf3 {[%clk 0:00:17.1]}
33... f6 {[%clk 0:00:36.9]} 34. Nd4 {[%clk 0:00:17.1]} 34... Bd7 {[%clk
0:00:36.5]} 35. Ra3 {[%clk 0:00:17]} 35... e5 {[%clk 0:00:36.7]} 36. Ne2 {[%clk
0:00:17]} 36... Rc2 {[%clk 0:00:33.7]} 37. Nc3 {[%clk 0:00:17.2]} 37... Ke6
{[%clk 0:00:31.1]} 38. Kf1 {[%clk 0:00:16.7]} 38... Bc6 {[%clk 0:00:28.1]} 39.
g3 {[%clk 0:00:16.7]} 39... Bf3 {[%clk 0:00:25.6]} 40. Ke1 {[%clk 0:00:16.5]}
40... h5 {[%clk 0:00:25.2]} 41. Na4 {[%clk 0:00:16.1]} 41... Re2+ {[%clk
0:00:22.8]} 42. Kf1 {[%clk 0:00:16.7]} 42... Rc2 {[%clk 0:00:23.3]} 43. Ke1
{[%clk 0:00:17.8]} 43... Re2+ {[%clk 0:00:15.6]} 44. Kf1 {[%clk 0:00:18.7]}
44... Rd2 {[%clk 0:00:16.9]} 45. Ra1 {[%clk 0:00:17.9]} 45... Rd6 {[%clk
0:00:13.8]} 46. h4 {[%clk 0:00:15.6]} 46... Kf5 {[%clk 0:00:13.2]} 47. Ke1
{[%clk 0:00:16.2]} 47... g5 {[%clk 0:00:12.9]} 48. hxg5 {[%clk 0:00:11.6]} 48...
fxg5 {[%clk 0:00:13.7]} 49. Nb2 {[%clk 0:00:12.1]} 49... b5 {[%clk 0:00:14.1]}
50. Nd1 {[%clk 0:00:11]} 50... Rxd1+ {[%clk 0:00:13.3]} 51. Rxd1 {[%clk
0:00:11.4]} 51... Bxd1 {[%clk 0:00:14.4]} 52. Kxd1 {[%clk 0:00:13.3]} 52... Ke4
{[%clk 0:00:14.5]} 53. Ke2 {[%clk 0:00:13.8]} 53... Kd5 {[%clk 0:00:11.8]} 54.
f4 {[%clk 0:00:11.5]} 54... exf4 {[%clk 0:00:12.1]} 55. exf4 {[%clk 0:00:13.4]}
55... gxf4 {[%clk 0:00:13.5]} 56. gxf4 {[%clk 0:00:15.3]} 56... Ke4 {[%clk
0:00:14.9]} 57. f5 {[%clk 0:00:17.2]} 57... Kxf5 {[%clk 0:00:16.2]} 58. Kf3
{[%clk 0:00:17.5]} 58... Ke5 {[%clk 0:00:16.6]} 59. Ke3 {[%clk 0:00:18.6]} 59...
Kd5 {[%clk 0:00:17.9]} 60. Kd3 {[%clk 0:00:19.9]} 60... h4 {[%clk 0:00:19.2]}
61. Ke3 {[%clk 0:00:21.2]} 61... Kc4 {[%clk 0:00:20.5]} 62. Kf4 {[%clk
0:00:19.8]} 62... Kxb4 {[%clk 0:00:21.2]} 63. Kg4 {[%clk 0:00:21.7]} 63... a5
{[%clk 0:00:22.7]} 64. Kxh4 {[%clk 0:00:23.3]} 64... a4 {[%clk 0:00:24.6]} 65.
Kg3 {[%clk 0:00:25.2]} 65... a3 {[%clk 0:00:26.5]} 66. Kf4 {[%clk 0:00:26.5]}
66... a2 {[%clk 0:00:28.4]} 67. Ke5 {[%clk 0:00:28.4]} 67... a1=Q+ {[%clk
0:00:30.3]} 68. Ke4 {[%clk 0:00:30.3]} 68... Kc4 {[%clk 0:00:31.1]} 69. Ke3
{[%clk 0:00:31.1]} 69... Qd4+ {[%clk 0:00:32.2]} 70. Kf3 {[%clk 0:00:32.1]}
70... b4 {[%clk 0:00:34.1]} 71. Ke2 {[%clk 0:00:32.9]} 71... b3 {[%clk 0:00:36]}
72. Ke1 {[%clk 0:00:34.1]} 72... b2 {[%clk 0:00:37.9]} 73. Ke2 {[%clk
0:00:35.4]} 73... b1=Q {[%clk 0:00:38.6]} 74. Kf3 {[%clk 0:00:36]} 74... Qbd3+
{[%clk 0:00:39.7]} 75. Kg2 {[%clk 0:00:36.8]} 75... Qb2+ {[%clk 0:00:41.6]} 0-1

[Event "*** Titled Tuesday 3|2 Blitz"]
[Site "Chess.com"]
[Date "2016.09.06"]
[Round "7"]
[White "Tash_Boy"]
[Black "dusanacns"]
[Result "0-1"]
[WhiteElo "2411"]
[BlackElo "2554"]
[TimeControl "180+2"]
[EndTime "12:30:58 PDT"]
[Termination "dusanacns won by resignation"]

1. e4 {[%clk 0:03:01.9]} 1... c5 {[%clk 0:02:58.2]} 2. Nf3 {[%clk 0:03:02]} 2...
d6 {[%clk 0:02:59.7]} 3. d4 {[%clk 0:03:03.4]} 3... cxd4 {[%clk 0:03:01.1]} 4.
Nxd4 {[%clk 0:03:04.9]} 4... Nf6 {[%clk 0:03:02.4]} 5. Nc3 {[%clk 0:03:04.5]}
5... a6 {[%clk 0:03:03.8]} 6. Bg5 {[%clk 0:03:05.4]} 6... Nbd7 {[%clk
0:03:04.1]} 7. Qe2 {[%clk 0:03:06.5]} 7... h6 {[%clk 0:03:01.3]} 8. Bh4 {[%clk
0:03:06.9]} 8... g6 {[%clk 0:03:02.7]} 9. f4 {[%clk 0:03:07.4]} 9... e5 {[%clk
0:03:01.5]} 10. fxe5 {[%clk 0:03:07.5]} 10... dxe5 {[%clk 0:03:02.6]} 11. O-O-O
{[%clk 0:03:07.8]} 11... Qc7 {[%clk 0:03:03.9]} 12. Nb3 {[%clk 0:03:08.1]} 12...
b5 {[%clk 0:03:04.7]} 13. Nd5 {[%clk 0:03:08.8]} 13... Nxd5 {[%clk 0:03:04.7]}
14. exd5 {[%clk 0:03:10.4]} 14... Bd6 {[%clk 0:03:01.7]} 15. Qd2 {[%clk
0:03:11.9]} 15... f5 {[%clk 0:02:44.1]} 16. g4 {[%clk 0:03:04.6]} 16... Nb6
{[%clk 0:02:40.1]} 17. Na5 {[%clk 0:02:52]} 17... e4 {[%clk 0:02:01.6]} 18. Kb1
{[%clk 0:02:45]} 18... g5 {[%clk 0:01:56.1]} 19. Bf2 {[%clk 0:02:41]} 19... Na4
{[%clk 0:01:37.2]} 20. gxf5 {[%clk 0:02:31.2]} 20... Bxf5 {[%clk 0:01:34.3]} 21.
Bd4 {[%clk 0:02:28.5]} 21... O-O {[%clk 0:01:28.3]} 22. h4 {[%clk 0:02:26.1]}
22... e3 {[%clk 0:01:23.7]} 23. Bxe3 {[%clk 0:02:24.5]} 23... Bb4 {[%clk
0:01:24.9]} 24. d6 {[%clk 0:01:13.7]} 24... Bxd2 {[%clk 0:01:18]} 25. dxc7
{[%clk 0:01:14.6]} 25... Bxe3 {[%clk 0:01:12.6]} 26. hxg5 {[%clk 0:01:14.7]}
26... Rac8 {[%clk 0:01:05.8]} 27. gxh6 {[%clk 0:01:04.5]} 27... Rxc7 {[%clk
0:01:05.8]} 28. Bd3 {[%clk 0:01:05.9]} 28... Kh7 {[%clk 0:00:44.2]} 29. Nb3
{[%clk 0:00:46.6]} 29... Bxh6 {[%clk 0:00:39.7]} 30. Rdf1 {[%clk 0:00:42.7]}
30... Rcf7 {[%clk 0:00:37.4]} 31. Rxf5 {[%clk 0:00:33.9]} 31... Rxf5 {[%clk
0:00:35.5]} 32. Nd4 {[%clk 0:00:35.5]} 32... Kg8 {[%clk 0:00:17.5]} 33. Nxf5
{[%clk 0:00:35.9]} 33... Bf4 {[%clk 0:00:19.1]} 34. Rg1+ {[%clk 0:00:35]} 34...
Kf7 {[%clk 0:00:19.6]} 35. Nd4 {[%clk 0:00:35]} 35... Be5 {[%clk 0:00:14.3]} 36.
Rf1+ {[%clk 0:00:35.6]} 36... Bf6 {[%clk 0:00:14.6]} 37. Nc6 {[%clk 0:00:32]}
37... Rh8 {[%clk 0:00:13.9]} 38. Be4 {[%clk 0:00:30.5]} 38... Ke6 {[%clk
0:00:14.6]} 39. Nb4 {[%clk 0:00:23.7]} 39... Bxb2 {[%clk 0:00:12.4]} 40. Nxa6
{[%clk 0:00:23.4]} 40... Bd4 {[%clk 0:00:13.3]} 41. Bd3 {[%clk 0:00:23.9]} 41...
Nc3+ {[%clk 0:00:11]} 42. Kc1 {[%clk 0:00:25.1]} 42... Kd6 {[%clk 0:00:09.6]}
43. Nb4 {[%clk 0:00:25.3]} 43... Kc5 {[%clk 0:00:09.6]} 44. Na6+ {[%clk
0:00:26.3]} 44... Kd6 {[%clk 0:00:11]} 45. Nb4 {[%clk 0:00:27.2]} 45... Ra8
{[%clk 0:00:12.2]} 46. Rh1 {[%clk 0:00:26]} 46... Ra4 {[%clk 0:00:13]} 47. Rh6+
{[%clk 0:00:22.2]} 47... Kc5 {[%clk 0:00:14.4]} 48. Na6+ {[%clk 0:00:23.2]}
48... Kd5 {[%clk 0:00:15.9]} 49. Nc7+ {[%clk 0:00:24.7]} 49... Ke5 {[%clk
0:00:16]} 50. Rh5+ {[%clk 0:00:24.1]} 50... Kf4 {[%clk 0:00:13.6]} 51. Ne6+
{[%clk 0:00:22.3]} 51... Kg4 {[%clk 0:00:09.6]} 52. Rg5+ {[%clk 0:00:23]} 52...
Kh4 {[%clk 0:00:09.7]} 53. Rg8 {[%clk 0:00:23]} 53... Be5 {[%clk 0:00:08.4]} 54.
Ng7 {[%clk 0:00:20.3]} 54... Rxa2 {[%clk 0:00:06.7]} 55. Nf5+ {[%clk 0:00:20.8]}
55... Kh3 {[%clk 0:00:08.1]} 56. Kd2 {[%clk 0:00:22.3]} 56... b4 {[%clk
0:00:06.8]} 57. Bf1+ {[%clk 0:00:22.4]} 57... Kh2 {[%clk 0:00:06.1]} 58. Bd3
{[%clk 0:00:22.5]} 58... b3 {[%clk 0:00:04.8]} 59. Ne3 {[%clk 0:00:23.5]} 59...
b2 {[%clk 0:00:02.4]} 60. Ng4+ {[%clk 0:00:24.3]} 60... Kh3 {[%clk 0:00:03.6]}
61. Bf1+ {[%clk 0:00:23.8]} 61... Kh4 {[%clk 0:00:04.5]} 62. Nxe5 {[%clk
0:00:24.3]} 62... Ne4+ {[%clk 0:00:05.8]} 63. Ke3 {[%clk 0:00:24.6]} 63... b1=Q
{[%clk 0:00:07.3]} 64. Kxe4 {[%clk 0:00:21.8]} 64... Qxf1 {[%clk 0:00:06.9]} 65.
Nf3+ {[%clk 0:00:21.5]} 65... Kh5 {[%clk 0:00:07.3]} 66. Rh8+ {[%clk 0:00:22.5]}
66... Kg6 {[%clk 0:00:08.5]} 67. Ne5+ {[%clk 0:00:21.9]} 67... Kg7 {[%clk
0:00:08.6]} 68. Rh4 {[%clk 0:00:22.6]} 68... Qe1+ {[%clk 0:00:09.6]} 0-1

[Event "*** Titled Tuesday 3|2 Blitz"]
[Site "Chess.com"]
[Date "2016.09.06"]
[Round "7"]
[White "Zhani-Z"]
[Black "Mepetmepe"]
[Result "0-1"]
[WhiteElo "2275"]
[BlackElo "2398"]
[TimeControl "180+2"]
[EndTime "12:31:35 PDT"]
[Termination "Mepetmepe won by resignation"]

1. e4 {[%clk 0:03:01.9]} 1... e5 {[%clk 0:03:00.8]} 2. Nf3 {[%clk 0:03:02.1]}
2... Nc6 {[%clk 0:03:02]} 3. Nc3 {[%clk 0:03:03.6]} 3... Nf6 {[%clk 0:03:02.9]}
4. d4 {[%clk 0:03:04.9]} 4... exd4 {[%clk 0:03:03.5]} 5. Nd5 {[%clk 0:03:05.8]}
5... Be7 {[%clk 0:02:53.1]} 6. Nxd4 {[%clk 0:03:00]} 6... Nxd5 {[%clk
0:02:50.8]} 7. exd5 {[%clk 0:02:59.4]} 7... Nxd4 {[%clk 0:02:52.1]} 8. Qxd4
{[%clk 0:03:00.2]} 8... O-O {[%clk 0:02:54]} 9. Be3 {[%clk 0:02:42.7]} 9... Bf6
{[%clk 0:02:54.6]} 10. Qb4 {[%clk 0:02:43.3]} 10... a5 {[%clk 0:02:54.5]} 11.
Qb3 {[%clk 0:02:43.8]} 11... a4 {[%clk 0:02:55.6]} 12. Qb4 {[%clk 0:02:44.8]}
12... a3 {[%clk 0:02:56.9]} 13. c3 {[%clk 0:02:39.5]} 13... axb2 {[%clk
0:02:56.2]} 14. Qxb2 {[%clk 0:02:40.6]} 14... c6 {[%clk 0:02:51.8]} 15. Be2
{[%clk 0:02:32.3]} 15... Qa5 {[%clk 0:02:52.3]} 16. Bd2 {[%clk 0:02:21.8]} 16...
Re8 {[%clk 0:02:50.9]} 17. Kf1 {[%clk 0:01:46.5]} 17... Qxd5 {[%clk 0:02:47.9]}
18. Be3 {[%clk 0:01:43]} 18... Qa5 {[%clk 0:02:41.4]} 19. Bd4 {[%clk 0:01:43.8]}
19... Bxd4 {[%clk 0:02:28.8]} 20. cxd4 {[%clk 0:01:44.7]} 20... b6 {[%clk
0:02:30.7]} 21. f3 {[%clk 0:01:39.1]} 21... Ba6 {[%clk 0:02:31.8]} 22. Bxa6
{[%clk 0:01:37.3]} 22... Qxa6+ {[%clk 0:02:32.3]} 23. Kf2 {[%clk 0:01:38.3]}
23... Qa3 {[%clk 0:02:31.2]} 24. Qxa3 {[%clk 0:01:35.2]} 24... Rxa3 {[%clk
0:02:33.1]} 25. Rhb1 {[%clk 0:01:36.1]} 25... b5 {[%clk 0:02:34.3]} 26. Rb3
{[%clk 0:01:37]} 26... Rea8 {[%clk 0:02:34.5]} 27. Rb2 {[%clk 0:00:44.3]} 27...
Rd3 {[%clk 0:02:34.1]} 28. a4 {[%clk 0:00:45.3]} 28... Rxd4 {[%clk 0:02:29.2]}
29. axb5 {[%clk 0:00:46.1]} 29... Rxa1 {[%clk 0:01:46.1]} 30. bxc6 {[%clk
0:00:46.7]} 30... Kf8 {[%clk 0:01:46.5]} 31. c7 {[%clk 0:00:44.1]} 31... Rc1
{[%clk 0:01:47.3]} 32. Rb8+ {[%clk 0:00:44.3]} 32... Ke7 {[%clk 0:01:48.8]} 33.
c8=Q {[%clk 0:00:45]} 33... Rxc8 {[%clk 0:01:50.7]} 34. Rxc8 {[%clk 0:00:46.5]}
34... Rd2+ {[%clk 0:01:52.6]} 35. Kg3 {[%clk 0:00:43.8]} 35... h5 {[%clk
0:01:52.9]} 36. h4 {[%clk 0:00:43.5]} 36... g6 {[%clk 0:01:54.2]} 37. Ra8 {[%clk
0:00:40.7]} 37... Ke6 {[%clk 0:01:54.4]} 38. Ra6+ {[%clk 0:00:41.1]} 38... d6
{[%clk 0:01:55.8]} 39. Ra7 {[%clk 0:00:41.7]} 39... Rb2 {[%clk 0:01:55.3]} 40.
Ra6 {[%clk 0:00:39.2]} 40... f6 {[%clk 0:01:55.7]} 41. Kh3 {[%clk 0:00:34.5]}
41... Rd2 {[%clk 0:01:55.1]} 42. g4 {[%clk 0:00:30.7]} 42... hxg4+ {[%clk
0:01:56.1]} 43. fxg4 {[%clk 0:00:31.5]} 43... Rd3+ {[%clk 0:01:57.5]} 44. Kg2
{[%clk 0:00:32.6]} 44... Ke5 {[%clk 0:01:56.2]} 45. Ra1 {[%clk 0:00:21.5]} 45...
Rd4 {[%clk 0:01:27.4]} 46. Kf3 {[%clk 0:00:20.6]} 46... Rd3+ {[%clk 0:01:26.7]}
47. Kg2 {[%clk 0:00:21.4]} 47... Rd4 {[%clk 0:01:01]} 48. Kf3 {[%clk 0:00:21.4]}
48... d5 {[%clk 0:01:02.6]} 49. Rh1 {[%clk 0:00:12.5]} 49... Rd3+ {[%clk
0:00:34.8]} 50. Ke2 {[%clk 0:00:10.4]} 50... Ra3 {[%clk 0:00:35.9]} 51. h5
{[%clk 0:00:10.4]} 51... gxh5 {[%clk 0:00:37.8]} 52. gxh5 {[%clk 0:00:11.5]}
52... Ra7 {[%clk 0:00:38.9]} 53. h6 {[%clk 0:00:11.9]} 53... Rh7 {[%clk
0:00:39.5]} 54. Ke3 {[%clk 0:00:11.1]} 54... Kf5 {[%clk 0:00:40.1]} 55. Rh5+
{[%clk 0:00:11.3]} 55... Kg6 {[%clk 0:00:37.8]} 56. Rxd5 {[%clk 0:00:11.6]}
56... Rxh6 {[%clk 0:00:39.7]} 57. Kf4 {[%clk 0:00:10.9]} 57... Rh1 {[%clk
0:00:39.1]} 58. Ra5 {[%clk 0:00:10.6]} 58... Rb1 {[%clk 0:00:38.6]} 59. Kg4
{[%clk 0:00:11]} 59... Rb4+ {[%clk 0:00:39.8]} 60. Kg3 {[%clk 0:00:12.1]} 60...
f5 {[%clk 0:00:40.9]} 61. Kf3 {[%clk 0:00:12.9]} 61... Kg5 {[%clk 0:00:41.8]}
62. Ra3 {[%clk 0:00:13.1]} 62... Rh4 {[%clk 0:00:42.4]} 63. Kg3 {[%clk
0:00:14.1]} 63... f4+ {[%clk 0:00:43.7]} 64. Kg2 {[%clk 0:00:15.2]} 64... Kg4
{[%clk 0:00:45.2]} 65. Kg1 {[%clk 0:00:14.2]} 65... Rh7 {[%clk 0:00:43.7]} 66.
Rb3 {[%clk 0:00:14.5]} 66... Ra7 {[%clk 0:00:44.6]} 67. Kf1 {[%clk 0:00:15]}
67... Re7 {[%clk 0:00:41.8]} 68. Kg1 {[%clk 0:00:15.5]} 68... Re3 {[%clk
0:00:42]} 69. Rb2 {[%clk 0:00:11.4]} 69... Kf3 {[%clk 0:00:38]} 70. Rf2+ {[%clk
0:00:12.1]} 70... Kg3 {[%clk 0:00:37.4]} 71. Rg2+ {[%clk 0:00:11.7]} 71... Kf3
{[%clk 0:00:38.9]} 72. Rf2+ {[%clk 0:00:12.7]} 72... Ke4 {[%clk 0:00:40.8]} 73.
Ra2 {[%clk 0:00:13.5]} 73... Rb3 {[%clk 0:00:38.2]} 74. Kf2 {[%clk 0:00:14]}
74... Rb4 {[%clk 0:00:33.6]} 75. Re2+ {[%clk 0:00:13.7]} 75... Kf5 {[%clk
0:00:34.3]} 76. Ra2 {[%clk 0:00:14.6]} 76... Kg4 {[%clk 0:00:34.4]} 77. Kg2
{[%clk 0:00:15.7]} 77... Rb3 {[%clk 0:00:32.1]} 78. Kf2 {[%clk 0:00:15.5]} 78...
Rh3 {[%clk 0:00:29.7]} 79. Kg2 {[%clk 0:00:15.3]} 79... f3+ {[%clk 0:00:30.6]}
80. Kg1 {[%clk 0:00:16.5]} 80... Kg3 {[%clk 0:00:31.3]} 81. Rg2+ {[%clk
0:00:13.4]} 81... Kf4 {[%clk 0:00:30.8]} 82. Rg8 {[%clk 0:00:14.3]} 82... Rg3+
{[%clk 0:00:28.1]} 83. Rxg3 {[%clk 0:00:12.5]} 83... Kxg3 {[%clk 0:00:30]} 84.
Kh1 {[%clk 0:00:13.6]} 84... Kf2 {[%clk 0:00:31.2]} 0-1

[Event "*** Titled Tuesday 3|2 Blitz"]
[Site "Chess.com"]
[Date "2016.09.06"]
[Round "8"]
[White "lionheart95"]
[Black "wonderfultime"]
[Result "0-1"]
[WhiteElo "2472"]
[BlackElo "2670"]
[TimeControl "180+2"]
[EndTime "12:34:55 PDT"]
[Termination "wonderfultime won by resignation"]

1. e4 {[%clk 0:02:59.8]} 1... c5 {[%clk 0:03:00.8]} 2. Nf3 {[%clk 0:03:00.8]}
2... d6 {[%clk 0:03:02.3]} 3. d4 {[%clk 0:03:02.1]} 3... cxd4 {[%clk 0:03:04.2]}
4. Nxd4 {[%clk 0:03:03.7]} 4... Nf6 {[%clk 0:03:05.7]} 5. Nc3 {[%clk 0:03:05.3]}
5... g6 {[%clk 0:03:07.3]} 6. Be3 {[%clk 0:03:05.4]} 6... Bg7 {[%clk 0:03:08.8]}
7. f3 {[%clk 0:03:06.6]} 7... O-O {[%clk 0:03:09.7]} 8. Bc4 {[%clk 0:03:05.9]}
8... Nc6 {[%clk 0:03:05.7]} 9. Bb3 {[%clk 0:03:07]} 9... Bd7 {[%clk 0:03:05.9]}
10. h4 {[%clk 0:03:07.9]} 10... h5 {[%clk 0:03:07]} 11. Qd2 {[%clk 0:03:08.7]}
11... Rc8 {[%clk 0:03:07]} 12. O-O-O {[%clk 0:03:08.9]} 12... Ne5 {[%clk
0:03:08.4]} 13. Bg5 {[%clk 0:03:10.3]} 13... Rc5 {[%clk 0:03:09.4]} 14. Kb1
{[%clk 0:03:11.3]} 14... b5 {[%clk 0:03:10.9]} 15. g4 {[%clk 0:03:10.2]} 15...
hxg4 {[%clk 0:03:12.1]} 16. h5 {[%clk 0:03:11.3]} 16... Nxh5 {[%clk 0:03:12.9]}
17. Nd5 {[%clk 0:03:12.5]} 17... Re8 {[%clk 0:03:02.5]} 18. Rxh5 {[%clk
0:03:09.7]} 18... gxh5 {[%clk 0:03:01.1]} 19. Qh2 {[%clk 0:03:11.6]} 19... Rxd5
{[%clk 0:02:07.4]} 20. Qd2 {[%clk 0:03:13.5]} 20... Nxf3 {[%clk 0:02:04.9]} 21.
Qh2 {[%clk 0:03:15.4]} 21... Nxh2 {[%clk 0:02:04.8]} 0-1

[Event "*** Titled Tuesday 3|2 Blitz"]
[Site "Chess.com"]
[Date "2016.09.06"]
[Round "8"]
[White "Kawhi_Leonard2"]
[Black "SavelijTartakover"]
[Result "0-1"]
[WhiteElo "2015"]
[BlackElo "2458"]
[TimeControl "180+2"]
[EndTime "12:35:22 PDT"]
[Termination "SavelijTartakover won by resignation"]

1. e4 {[%clk 0:02:59.2]} 1... c5 {[%clk 0:03:00]} 2. Nf3 {[%clk 0:03:00.1]} 2...
Nc6 {[%clk 0:03:00.8]} 3. d4 {[%clk 0:03:01.4]} 3... cxd4 {[%clk 0:03:01.5]} 4.
Nxd4 {[%clk 0:03:03]} 4... Nf6 {[%clk 0:03:03]} 5. Nc3 {[%clk 0:03:03.9]} 5...
d6 {[%clk 0:03:04.5]} 6. Bg5 {[%clk 0:03:03.6]} 6... e6 {[%clk 0:03:05.1]} 7.
Qd2 {[%clk 0:03:04.6]} 7... Be7 {[%clk 0:03:05.7]} 8. O-O-O {[%clk 0:03:04.9]}
8... Nxd4 {[%clk 0:03:07.2]} 9. Qxd4 {[%clk 0:03:04.6]} 9... O-O {[%clk
0:03:08.5]} 10. f4 {[%clk 0:03:04.5]} 10... h6 {[%clk 0:03:09]} 11. Bh4 {[%clk
0:02:50.7]} 11... a6 {[%clk 0:03:08.4]} 12. Bc4 {[%clk 0:02:43.2]} 12... b5
{[%clk 0:03:05.7]} 13. Bb3 {[%clk 0:02:44.1]} 13... Rb8 {[%clk 0:03:05.8]} 14.
e5 {[%clk 0:02:31.5]} 14... dxe5 {[%clk 0:03:03.2]} 15. Qxe5 {[%clk 0:02:32.4]}
15... Qb6 {[%clk 0:03:02.9]} 16. Kb1 {[%clk 0:02:10.2]} 16... Ng4 {[%clk
0:02:50.8]} 17. Qe1 {[%clk 0:01:49]} 17... Bxh4 {[%clk 0:02:50.3]} 18. Qxh4
{[%clk 0:01:49.4]} 18... Nf2 {[%clk 0:02:51.4]} 19. g4 {[%clk 0:01:46]} 19...
Nxh1 {[%clk 0:02:50.7]} 20. Rxh1 {[%clk 0:01:45.8]} 20... Bb7 {[%clk 0:02:51.1]}
21. Rg1 {[%clk 0:01:45.7]} 21... Qxg1+ {[%clk 0:02:51.1]} 0-1

[Event "*** Titled Tuesday 3|2 Blitz"]
[Site "Chess.com"]
[Date "2016.09.06"]
[Round "8"]
[White "Polemistis"]
[Black "Colombiano07"]
[Result "0-1"]
[WhiteElo "1812"]
[BlackElo "2191"]
[TimeControl "180+2"]
[EndTime "12:35:42 PDT"]
[Termination "Colombiano07 won by resignation"]

1. d4 {[%clk 0:02:57.2]} 1... d5 {[%clk 0:02:46.8]} 2. c4 {[%clk 0:02:57]} 2...
e6 {[%clk 0:02:46.3]} 3. Nc3 {[%clk 0:02:55.8]} 3... Nf6 {[%clk 0:02:45.2]} 4.
cxd5 {[%clk 0:02:56.9]} 4... exd5 {[%clk 0:02:44.9]} 5. Bg5 {[%clk 0:02:58.4]}
5... Be7 {[%clk 0:02:44.6]} 6. e3 {[%clk 0:02:59.7]} 6... Bf5 {[%clk 0:02:42.5]}
7. Bxf6 {[%clk 0:02:57.4]} 7... Bxf6 {[%clk 0:02:41.9]} 8. Qb3 {[%clk
0:02:58.1]} 8... O-O {[%clk 0:02:36.1]} 9. Qxd5 {[%clk 0:02:56.9]} 9... Qxd5
{[%clk 0:02:33.1]} 10. Nxd5 {[%clk 0:02:57.6]} 10... Bd8 {[%clk 0:02:35]} 11.
Nf3 {[%clk 0:02:56]} 11... c6 {[%clk 0:02:34.4]} 12. Nc3 {[%clk 0:02:56.9]}
12... Re8 {[%clk 0:02:33.8]} 13. Be2 {[%clk 0:02:58]} 13... Nd7 {[%clk
0:02:33.6]} 14. O-O {[%clk 0:02:58.9]} 14... Bf6 {[%clk 0:02:33.6]} 15. Nh4
{[%clk 0:02:58.3]} 15... Bxh4 {[%clk 0:02:33.5]} 16. g3 {[%clk 0:02:53.2]} 16...
Bf6 {[%clk 0:02:33.9]} 17. Bf3 {[%clk 0:02:54.9]} 17... Nb6 {[%clk 0:02:33.7]}
18. Bg2 {[%clk 0:02:55.3]} 18... Rad8 {[%clk 0:02:33.7]} 19. Rfd1 {[%clk
0:02:56.2]} 19... Nd5 {[%clk 0:02:33.2]} 20. Nxd5 {[%clk 0:02:50.2]} 20... cxd5
{[%clk 0:02:35.1]} 21. Rac1 {[%clk 0:02:52.1]} 21... Be4 {[%clk 0:02:32.3]} 22.
Bxe4 {[%clk 0:02:52.2]} 22... dxe4 {[%clk 0:02:33.4]} 23. Rc7 {[%clk 0:02:53.2]}
23... Re7 {[%clk 0:02:34.3]} 24. Rdc1 {[%clk 0:02:53.7]} 24... Kf8 {[%clk
0:02:34.4]} 25. Rxe7 {[%clk 0:02:54.3]} 25... Kxe7 {[%clk 0:02:36.3]} 26. Rc7+
{[%clk 0:02:55.1]} 26... Rd7 {[%clk 0:02:37.8]} 27. Rc8 {[%clk 0:02:56.7]} 27...
Kd6 {[%clk 0:02:37.4]} 28. Re8 {[%clk 0:02:57.4]} 28... Be7 {[%clk 0:02:35.7]}
29. Rh8 {[%clk 0:02:57.9]} 29... h6 {[%clk 0:02:35.5]} 30. Rg8 {[%clk
0:02:58.7]} 30... Bf6 {[%clk 0:02:36.1]} 31. Rc8 {[%clk 0:02:59.1]} 31... Rc7
{[%clk 0:02:37.2]} 32. Re8 {[%clk 0:02:55.5]} 32... Be7 {[%clk 0:02:36.4]} 33.
Ra8 {[%clk 0:02:54.3]} 33... a6 {[%clk 0:02:37.1]} 0-1